[Event "ONJK-B 2019"]
[Site "Borne"]
[Date "2019.08.07"]
[Round "5.7"]
[White "Hubers, Daan"]
[Black "Neirynck, Arthur"]
[Result "1-0"]
[ECO "A00"]
[WhiteElo "1512"]
[BlackElo "1514"]
[Annotator "NA"]
[PlyCount "163"]
[EventDate "2019.08.05"]
[EventType "swiss"]
[EventCountry "NED"]
[SourceTitle "playchess.com"]
[Source "ChessBase"]
[SourceQuality "1"]
[TimeControl "5400+30"]

1. b4 {[%emt 0:00:00]} e5 {[%emt 0:00:00]} 2. Bb2 {[%emt 0:00:00]} Bxb4 {[%emt 0:00:09]} 3. Bxe5 {[%emt 0:00:00]} Nf6 {[%emt 0:00:56]} 4. e3 {[%emt 0:00:20]} O-O {[%emt 0:00:58]} 5. Nf3 {[%emt 0:00:44]} Nc6 {[%emt 0:01:03]} 6. Bb2 {[%emt 0:00:18]} d5 {[%emt 0:01:57]} 7. a3 {[%emt 0:00:51]} Ba5 {[%emt 0:00:50]} 8. Be2 {[%emt 0:00:35]} Bf5 {[%emt 0:01:43]} 9. h3 {[%emt 0:00:52]} Qd6 {[%emt 0:08:42]} 10. Nh4 {[%emt 0:01:06]} Bd7 {[%emt 0:03:00]} 11. Nc3 {[%emt 0:00:39]} Rfe8 {[%emt 0:01:42]} 12. Bg4 {[%emt 0:01:37]} Ne4 {[%emt 0:08:54]} 13. Nxe4 {[%emt 0:05:53]} dxe4 {[%emt 0:00:56]} 14. O-O {[%emt 0:10:33]} Rad8 {[%emt 0:02:15]} 15. Bxd7 {[%emt 0:03:42]} Rxd7 {[%emt 0:04:05]} 16. Nf5 {[%emt 0:01:46]} Qg6 {[%emt 0:02:26]} 17. Nd4 {[%emt 0:04:36]} Ne5 {[%emt 0:06:27]} 18. Qe2 {[%emt 0:05:07]} c6 {[%emt 0:17:44]} 19. a4 {[%emt 0:03:04]} Bc7 {[%emt 0:07:07]} 20. a5 {[%emt 0:05:52]} Qd6 {[%emt 0:05:00]} 21. f4 {[%emt 0:02:48]} exf3 {[%emt 0:01:23]} 22. Nxf3 {[%emt 0:00:06]} Nxf3+ {[%emt 0:01:04]} 23. Rxf3 {[%emt 0:00:32]} Qxd2 {[%emt 0:01:30]} 24. Qxd2 {[%emt 0:03:44]} Rxd2 {[%emt 0:00:18]} 25. Bd4 {[%emt 0:01:05]} Be5 {[%emt 0:04:34]} 26. c3 {[%emt 0:01:50]} Bxd4 {[%emt 0:01:11]} 27. cxd4 {[%emt 0:00:08]} f6 {[%emt 0:03:21]} 28. Kf1 {[%emt 0:05:00]} Kf7 {[%emt 0:00:37]} 29. g4 {[%emt 0:01:04]} Re7 {[%emt 0:01:36]} 30. Ra4 {[%emt 0:00:48]} Ke6 {[%emt 0:00:00]} 31. e4 {[%emt 0:02:51]} Kd7 {[%emt 0:01:28]} 32. Re3 {[%emt 0:01:09]} Kd6 {[%emt 0:03:09]} 33. Ke1 {[%emt 0:01:51]} Rh2 {[%emt 0:00:27]} 34. Kd1 {[%emt 0:02:22]} Rd7 {[%emt 0:00:56]} 35. Rd3 {[%emt 0:01:31]} Ke6 {[%emt 0:00:14]} 36. Ke1 {[%emt 0:03:20]} Rf7 {[%emt 0:00:46]} 37. Raa3 {[%emt 0:01:06]} Rc7 {[%emt 0:02:28]} 38. Rdc3 {[%emt 0:01:06]} Rb2 {[%emt 0:00:34]} 39. Ra4 {[%emt 0:01:40]} Kd6 {[%emt 0:00:19]} 40. Rf3 {[%emt 0:04:43]} b6 {[%emt 0:01:19]} 41. Rf5 {[%emt 0:03:14]} b5 {[%emt 0:03:38]} 42. Ra3 {[%emt 0:00:41]} b4 {[%emt 0:00:41]} 43. Ra4 {[%emt 0:00:13]} Rb7 {[%emt 0:00:55]} 44. a6 {[%emt 0:00:18]} Rb8 {[%emt 0:01:06]} 45. g5 {[%emt 0:00:12]} Ke6 {[%emt 0:01:01]} 46. gxf6 {[%emt 0:00:23]} gxf6 {[%emt 0:00:24]} 47. Rc5 {[%emt 0:00:07]} Kd6 {[%emt 0:00:26]} 48. Rh5 {[%emt 0:01:14]} Rg8 {[%emt 0:00:21]} 49. Kf1 {[%emt 0:00:55]} Rg7 {[%emt 0:00:03]} 50. Rh6 {[%emt 0:01:21]} Ke7 {[%emt 0:00:37]} 51. e5 {[%emt 0:01:33]} fxe5 {[%emt 0:00:23]} 52. dxe5 {[%emt 0:00:25]} Kd7 {[%emt 0:01:42]} 53. Ra5 {[%emt 0:01:31]} b3 {[%emt 0:00:47]} 54. Rd6+ {[%emt 0:00:11]} Kc7 {[%emt 0:00:21]} 55. Rc5 {[%emt 0:00:20]} Rc2 {[%emt 0:00:11]} 56. Rdxc6+ {[%emt 0:00:16]} Kd7 {[%emt 0:00:45]} 57. Rxc2 {[%emt 0:02:03]} bxc2 {[%emt 0:00:15]} 58. Rxc2 {[%emt 0:00:02]} Ke6 {[%emt 0:00:35]} 59. Rb2 {[%emt 0:10:07]} Kxe5 {[%emt 0:01:30]} 60. Rb7 {[%emt 0:00:07]} Rg6 {[%emt 0:00:39]} 61. Rxa7 {[%emt 0:00:26]} Kf5 {[%emt 0:00:18]} 62. Kf2 {[%emt 0:00:58]} Kg5 {[%emt 0:00:31]} 63. Kf3 {[%emt 0:01:49]} Kh6 {[%emt 0:00:22]} 64. h4 {[%emt 0:00:26]} Rc6 {[%emt 0:00:20]} 65. Kf4 {[%emt 0:02:09]} Rc5 {[%emt 0:00:14]} 66. Rb7 {[%emt 0:00:32]} Ra5 {[%emt 0:00:24]} 67. a7 {[%emt 0:00:19]} Kg6 {[%emt 0:01:00]} 68. Ke4 {[%emt 0:01:46]} h6 {[%emt 0:00:28]} 69. Kd4 {[%emt 0:00:34]} Kh5 {[%emt 0:00:25]} 70. Rh7 {[%emt 0:00:15]} Kxh4 {[%emt 0:00:45]} 71. Rxh6+ {[%emt 0:00:13]} Kg5 {[%emt 0:00:18]} 72. Rh7 {[%emt 0:00:04]} Kf6 {[%emt 0:00:32]} 73. Kc4 {[%emt 0:00:06]} Ke6 {[%emt 0:00:37]} 74. Kb4 {[%emt 0:00:10]} Ra2 {[%emt 0:00:17]} 75. Kb5 {[%emt 0:00:06]} Kd6 {[%emt 0:00:24]} 76. Kb6 {[%emt 0:00:55]} Rb2+ {[%emt 0:00:12]} 77. Ka6 {[%emt 0:00:06]} Ra2+ {[%emt 0:01:01]} 78. Kb7 {[%emt 0:00:04]} Rb2+ {[%emt 0:00:17]} 79. Kc8 {[%emt 0:00:47]} Rc2+ {[%emt 0:00:25]} 80. Kb8 {[%emt 0:00:12]} Rb2+ {[%emt 0:00:09]} 81. Rb7 {[%emt 0:00:08]} Re2 {[%emt 0:00:44]} 82. a8=Q {[%emt 0:00:32]} 1-0

[Event "ONJK-B 2019"]
[Site "Borne"]
[Date "2019.08.07"]
[Round "5.8"]
[White "Visser, Barto"]
[Black "Hooijmans, Max"]
[Result "0-1"]
[ECO "C35"]
[WhiteElo "1342"]
[BlackElo "1559"]
[Annotator "NA"]
[PlyCount "44"]
[EventDate "2019.08.05"]
[EventType "swiss"]
[EventCountry "NED"]
[SourceTitle "playchess.com"]
[Source "ChessBase"]
[SourceQuality "1"]
[TimeControl "5400+30"]

1. e4 {[%emt 0:00:00]} e5 {[%emt 0:00:00]} 2. f4 {[%emt 0:00:00]} exf4 {[%emt 0:00:00]} 3. Nf3 {[%emt 0:00:00]} Be7 {[%emt 0:02:13]} 4. h4 {[%emt 0:01:08]} Nf6 {[%emt 0:01:26]} 5. Nc3 {[%emt 0:02:05]} Nh5 {[%emt 0:01:06]} 6. Bc4 {[%emt 0:01:29]} O-O {[%emt 0:01:02]} 7. d4 {[%emt 0:01:52]} d6 {[%emt 0:01:21]} 8. Nd5 {[%emt 0:02:16]} Be6 {[%emt 0:00:56]} 9. Nxe7+ {[%emt 0:03:13]} Qxe7 {[%emt 0:00:05]} 10. Ng5 {[%emt 0:03:45]} Ng3 {[%emt 0:11:10]} 11. Nxe6 {[%emt 0:01:31]} fxe6 {[%emt 0:00:19]} 12. Rh3 {[%emt 0:01:15]} Nxe4 {[%emt 0:01:27]} 13. Qh5 {[%emt 0:04:03]} d5 {[%emt 0:03:27]} 14. Bd3 {[%emt 0:01:38]} Nc6 {[%emt 0:01:25]} 15. c3 {[%emt 0:02:29]} e5 {[%emt 0:04:03]} 16. dxe5 {[%emt 0:05:27]} Qxe5 {[%emt 0:00:39]} 17. Qxe5 {[%emt 0:02:09]} Nxe5 {[%emt 0:00:03]} 18. Bc2 {[%emt 0:01:03]} f3 {[%emt 0:00:55]} 19. g4 {[%emt 0:01:37]} f2+ {[%emt 0:01:17]} 20. Kf1 {[%emt 0:00:15]} Nxg4 {[%emt 0:00:23]} 21. Bxe4 {[%emt 0:02:12]} dxe4 {[%emt 0:00:12]} 22. Rg3 {[%emt 0:00:42]} Nh2+ {[%emt 0:00:11]} 0-1

[Event "ONJK-B 2019"]
[Site "Borne"]
[Date "2019.08.07"]
[Round "5.9"]
[White "Heskes, Johan"]
[Black "Borgelioen, Elise"]
[Result "1-0"]
[ECO "D06"]
[WhiteElo "1535"]
[BlackElo "1342"]
[Annotator "NA"]
[PlyCount "67"]
[EventDate "2019.08.05"]
[EventType "swiss"]
[EventCountry "NED"]
[SourceTitle "playchess.com"]
[Source "ChessBase"]
[SourceQuality "1"]
[TimeControl "5400+30"]

1. d4 {[%emt 0:00:00]} d5 {[%emt 0:00:00]} 2. c4 {[%emt 0:00:00]} Nf6 {[%emt 0:00:00]} 3. Nc3 {[%emt 0:00:00]} Bf5 {[%emt 0:00:48]} 4. Bf4 {[%emt 0:00:16]} e6 {[%emt 0:00:28]} 5. e3 {[%emt 0:00:56]} Bd6 {[%emt 0:04:28]} 6. Bxd6 {[%emt 0:00:43]} cxd6 {[%emt 0:00:13]} 7. cxd5 {[%emt 0:00:05]} exd5 {[%emt 0:00:55]} 8. Bd3 {[%emt 0:00:33]} Bg6 {[%emt 0:01:10]} 9. Bxg6 {[%emt 0:01:26]} hxg6 {[%emt 0:00:30]} 10. Nf3 {[%emt 0:00:49]} O-O {[%emt 0:01:21]} 11. O-O {[%emt 0:00:50]} Nc6 {[%emt 0:00:55]} 12. Qb3 {[%emt 0:00:35]} Qc7 {[%emt 0:01:31]} 13. Nxd5 {[%emt 0:01:24]} Qd7 {[%emt 0:06:17]} 14. Nxf6+ {[%emt 0:00:36]} gxf6 {[%emt 0:00:12]} 15. Rac1 {[%emt 0:01:28]} Rfe8 {[%emt 0:03:03]} 16. Rc2 {[%emt 0:02:20]} Rac8 {[%emt 0:01:42]} 17. Rfc1 {[%emt 0:01:35]} d5 {[%emt 0:02:00]} 18. g3 {[%emt 0:03:46]} Kg7 {[%emt 0:04:19]} 19. Rc5 {[%emt 0:05:22]} Ne7 {[%emt 0:02:07]} 20. Rxc8 {[%emt 0:00:55]} Rxc8 {[%emt 0:00:50]} 21. Rxc8 {[%emt 0:00:06]} Qxc8 {[%emt 0:00:22]} 22. Qc3 {[%emt 0:00:06]} Qd7 {[%emt 0:02:39]} 23. Ne1 {[%emt 0:03:55]} b6 {[%emt 0:06:42]} 24. Nd3 {[%emt 0:00:42]} a5 {[%emt 0:04:59]} 25. b4 {[%emt 0:01:48]} a4 {[%emt 0:03:43]} 26. a3 {[%emt 0:03:16]} g5 {[%emt 0:01:21]} 27. Nb2 {[%emt 0:00:42]} Nc8 {[%emt 0:07:31]} 28. Nxa4 {[%emt 0:03:18]} b5 {[%emt 0:04:20]} 29. Nc5 {[%emt 0:00:33]} Qd6 {[%emt 0:01:02]} 30. a4 {[%emt 0:01:26]} bxa4 {[%emt 0:00:58]} 31. Nxa4 {[%emt 0:00:09]} Na7 {[%emt 0:01:13]} 32. Qc5 {[%emt 0:00:32]} Qd7 {[%emt 0:00:36]} 33. Nb6 {[%emt 0:00:37]} Qd8 {[%emt 0:00:48]} 34. Nxd5 {[%emt 0:00:36]} 1-0

[Event "ONJK-B 2019"]
[Site "Borne"]
[Date "2019.08.07"]
[Round "5.10"]
[White "Michielsen, Lies"]
[Black "Schoonhoven, Mark"]
[Result "1/2-1/2"]
[ECO "C54"]
[WhiteElo "1489"]
[BlackElo "1275"]
[Annotator "NA"]
[PlyCount "73"]
[EventDate "2019.08.05"]
[EventType "swiss"]
[EventCountry "NED"]
[SourceTitle "playchess.com"]
[Source "ChessBase"]
[SourceQuality "1"]
[TimeControl "5400+30"]

1. e4 {[%emt 0:00:00]} e5 {[%emt 0:00:00]} 2. Nf3 {[%emt 0:00:00]} Nc6 {[%emt 0:00:00]} 3. Bc4 {[%emt 0:00:00]} Bc5 {[%emt 0:00:00]} 4. c3 {[%emt 0:00:00]} Nf6 {[%emt 0:07:30]} 5. d3 {[%emt 0:01:36]} d6 {[%emt 0:00:16]} 6. Bb3 {[%emt 0:00:13]} Bg4 {[%emt 0:00:55]} 7. h3 {[%emt 0:01:28]} Be6 {[%emt 0:02:03]} 8. Bc2 {[%emt 0:01:41]} d5 {[%emt 0:09:40]} 9. Qe2 {[%emt 0:00:34]} dxe4 {[%emt 0:02:04]} 10. dxe4 {[%emt 0:00:38]} Qd7 {[%emt 0:00:13]} 11. Nbd2 {[%emt 0:01:37]} Nh5 {[%emt 0:01:35]} 12. Nxe5 {[%emt 0:07:57]} Nxe5 {[%emt 0:02:40]} 13. Qxh5 {[%emt 0:01:18]} Qd6 {[%emt 0:02:24]} 14. O-O {[%emt 0:04:21]} O-O-O {[%emt 0:00:25]} 15. Nf3 {[%emt 0:04:09]} Ng6 {[%emt 0:06:33]} 16. b4 {[%emt 0:03:51]} Bb6 {[%emt 0:00:45]} 17. a4 {[%emt 0:05:27]} a6 {[%emt 0:01:31]} 18. Rd1 {[%emt 0:03:08]} Qe7 {[%emt 0:01:42]} 19. Ba3 {[%emt 0:02:31]} Nf4 {[%emt 0:03:05]} 20. Qe5 {[%emt 0:05:50]} Ng6 {[%emt 0:02:46]} 21. Qh5 {[%emt 0:02:07]} Nf4 {[%emt 0:01:41]} 22. Qe5 {[%emt 0:00:23]} Ng6 {[%emt 0:00:11]} 23. Qg3 {[%emt 0:03:35]} Rxd1+ {[%emt 0:02:36]} 24. Rxd1 {[%emt 0:00:27]} c6 {[%emt 0:04:07]} 25. Ne5 {[%emt 0:07:37]} Nh4 {[%emt 0:04:28]} 26. Nf3 {[%emt 0:01:36]} Ng6 {[%emt 0:01:04]} 27. Qd6 {[%emt 0:04:00]} Qxd6 {[%emt 0:07:16]} 28. Rxd6 {[%emt 0:00:37]} Nf4 {[%emt 0:01:20]} 29. Rd2 {[%emt 0:02:24]} Bc4 {[%emt 0:01:45]} 30. Bd1 {[%emt 0:02:51]} Re8 {[%emt 0:01:55]} 31. a5 {[%emt 0:04:53]} Ba7 {[%emt 0:00:25]} 32. e5 {[%emt 0:00:54]} Bb8 {[%emt 0:00:38]} 33. Kh1 {[%emt 0:06:52]} Bxe5 {[%emt 0:06:22]} 34. Nxe5 {[%emt 0:00:39]} Rxe5 {[%emt 0:00:06]} 35. Rd4 {[%emt 0:01:58]} Re1+ {[%emt 0:00:07]} 36. Kh2 {[%emt 0:00:18]} Be6 {[%emt 0:02:21]} 37. Rd2 {[%emt 0:04:19]} 1/2-1/2

[Event "ONJK-B 2019"]
[Site "Borne"]
[Date "2019.08.07"]
[Round "5.11"]
[White "Klein, Lucas"]
[Black "Van Borren, Matthijs"]
[Result "1-0"]
[ECO "A19"]
[WhiteElo "1481"]
[BlackElo "1339"]
[Annotator "NA"]
[PlyCount "41"]
[EventDate "2019.08.05"]
[EventType "swiss"]
[EventCountry "NED"]
[SourceTitle "playchess.com"]
[Source "ChessBase"]
[SourceQuality "1"]
[TimeControl "5400+30"]

1. d4 {[%emt 0:00:00]} c5 {[%emt 0:00:00]} 2. c4 {[%emt 0:00:16]} cxd4 {[%emt 0:00:38]} 3. Qxd4 {[%emt 0:02:20]} Nc6 {[%emt 0:00:33]} 4. Qd1 {[%emt 0:00:45]} Nf6 {[%emt 0:00:47]} 5. Nc3 {[%emt 0:01:00]} e6 {[%emt 0:00:53]} 6. e4 {[%emt 0:01:51]} Bb4 {[%emt 0:04:42]} 7. Bd3 {[%emt 0:02:34]} Ne5 {[%emt 0:02:29]} 8. f4 {[%emt 0:02:02]} Nxd3+ {[%emt 0:01:22]} 9. Qxd3 {[%emt 0:00:21]} O-O {[%emt 0:01:15]} 10. Nge2 {[%emt 0:01:51]} a6 {[%emt 0:02:28]} 11. O-O {[%emt 0:00:58]} d6 {[%emt 0:04:57]} 12. Kh1 {[%emt 0:05:09]} Qc7 {[%emt 0:05:58]} 13. h3 {[%emt 0:03:15]} Bd7 {[%emt 0:03:30]} 14. Be3 {[%emt 0:04:17]} Rab8 {[%emt 0:05:07]} 15. Rac1 {[%emt 0:01:42]} Rfd8 {[%emt 0:03:23]} 16. f5 {[%emt 0:09:56]} Bc8 {[%emt 0:13:53]} 17. fxe6 {[%emt 0:06:04]} Bxe6 {[%emt 0:01:16]} 18. Nd5 {[%emt 0:01:46]} Qd7 {[%emt 0:05:15]} 19. Nxb4 {[%emt 0:09:53]} Bxh3 {[%emt 0:00:55]} 20. Bb6 {[%emt 0:04:41]} Bxg2+ {[%emt 0:00:53]} 21. Kxg2 {[%emt 0:00:32]} 1-0

[Event "ONJK-B 2019"]
[Site "Borne"]
[Date "2019.08.07"]
[Round "5.12"]
[White "Winter, Ynse"]
[Black "Maas, Tristan"]
[Result "1-0"]
[ECO "D15"]
[WhiteElo "1021"]
[BlackElo "1467"]
[Annotator "NA"]
[PlyCount "32"]
[EventDate "2019.08.05"]
[EventType "swiss"]
[EventCountry "NED"]
[SourceTitle "playchess.com"]
[Source "ChessBase"]
[SourceQuality "1"]
[TimeControl "5400+30"]

1. d4 {[%emt 0:00:00]} d5 {[%emt 0:00:00]} 2. c4 {[%emt 0:00:00]} c6 {[%emt 0:00:16]} 3. Nc3 {[%emt 0:00:00]} Nf6 {[%emt 0:00:22]} 4. Nf3 {[%emt 0:00:00]} Bf5 {[%emt 0:02:42]} 5. Qb3 {[%emt 0:01:11]} Qd7 {[%emt 0:04:19]} 6. Bf4 {[%emt 0:03:06]} e6 {[%emt 0:02:25]} 7. e3 {[%emt 0:01:33]} h6 {[%emt 0:00:54]} 8. Be2 {[%emt 0:01:47]} Be7 {[%emt 0:05:07]} 9. O-O {[%emt 0:03:13]} O-O {[%emt 0:01:13]} 10. Rac1 {[%emt 0:02:55]} Nh5 {[%emt 0:09:15]} 11. Bxb8 {[%emt 0:03:32]} Raxb8 {[%emt 0:00:59]} 12. Ne5 {[%emt 0:00:33]} Qc7 {[%emt 0:02:01]} 13. Bxh5 {[%emt 0:00:28]} f6 {[%emt 0:00:32]} 14. Ng6 {[%emt 0:00:37]} Bxg6 {[%emt 0:01:55]} 15. Bxg6 {[%emt 0:00:35]} f5 {[%emt 0:00:10]} 16. cxd5 {[%emt 0:02:02]} e5 {[%emt 0:04:37]} 1-0

[Event "ONJK-B 2019"]
[Site "Borne"]
[Date "2019.08.07"]
[Round "5.13"]
[White "Berghuis, Rowin"]
[Black "Tiggelman, Laura"]
[Result "0-1"]
[ECO "B70"]
[WhiteElo "1081"]
[BlackElo "1436"]
[Annotator "NA"]
[PlyCount "151"]
[EventDate "2019.08.05"]
[EventType "swiss"]
[EventCountry "NED"]
[SourceTitle "playchess.com"]
[Source "ChessBase"]
[SourceQuality "1"]
[TimeControl "5400+30"]

1. e4 {[%emt 0:00:00]} c5 {[%emt 0:00:00]} 2. Bc4 {[%emt 0:00:00]} d6 {[%emt 0:00:00]} 3. Nf3 {[%emt 0:00:24]} Nf6 {[%emt 0:00:06]} 4. Nc3 {[%emt 0:00:33]} g6 {[%emt 0:00:24]} 5. h3 {[%emt 0:00:40]} Bg7 {[%emt 0:00:09]} 6. O-O {[%emt 0:00:43]} Nc6 {[%emt 0:01:09]} 7. d4 {[%emt 0:01:08]} cxd4 {[%emt 0:00:18]} 8. Nxd4 {[%emt 0:00:07]} O-O {[%emt 0:00:46]} 9. b3 {[%emt 0:02:43]} Nxd4 {[%emt 0:01:30]} 10. Qxd4 {[%emt 0:00:13]} Nxe4 {[%emt 0:00:20]} 11. Qxe4 {[%emt 0:00:46]} Bxc3 {[%emt 0:00:05]} 12. Rb1 {[%emt 0:01:05]} Bf5 {[%emt 0:02:30]} 13. Qe2 {[%emt 0:01:31]} d5 {[%emt 0:06:38]} 14. Rd1 {[%emt 0:02:21]} e6 {[%emt 0:02:29]} 15. Bd3 {[%emt 0:06:09]} Bxd3 {[%emt 0:00:13]} 16. Qxd3 {[%emt 0:00:34]} Rc8 {[%emt 0:00:09]} 17. Qe3 {[%emt 0:00:46]} Qa5 {[%emt 0:02:24]} 18. Rd3 {[%emt 0:01:01]} Bg7 {[%emt 0:01:05]} 19. a4 {[%emt 0:01:30]} Rxc2 {[%emt 0:01:30]} 20. Ba3 {[%emt 0:01:12]} Rfc8 {[%emt 0:00:49]} 21. Rc1 {[%emt 0:08:18]} Rxc1+ {[%emt 0:02:31]} 22. Bxc1 {[%emt 0:00:24]} d4 {[%emt 0:02:29]} 23. Bd2 {[%emt 0:03:29]} dxe3 {[%emt 0:00:21]} 24. Bxa5 {[%emt 0:00:13]} Rc1+ {[%emt 0:03:44]} 25. Kh2 {[%emt 0:00:01]} e2 {[%emt 0:00:10]} 26. Re3 {[%emt 0:01:02]} Bc3 {[%emt 0:00:50]} 27. Bxc3 {[%emt 0:00:51]} Rxc3 {[%emt 0:00:11]} 28. Rxe2 {[%emt 0:00:20]} Rxb3 {[%emt 0:00:05]} 29. g4 {[%emt 0:00:25]} b5 {[%emt 0:01:21]} 30. Re4 {[%emt 0:00:55]} a6 {[%emt 0:02:21]} 31. h4 {[%emt 0:00:43]} Kf8 {[%emt 0:00:44]} 32. f4 {[%emt 0:00:57]} Ke7 {[%emt 0:01:35]} 33. Rd4 {[%emt 0:00:14]} b4 {[%emt 0:02:05]} 34. g5 {[%emt 0:00:25]} a5 {[%emt 0:00:19]} 35. Rc4 {[%emt 0:01:19]} Ra3 {[%emt 0:00:27]} 36. Rc7+ {[%emt 0:00:41]} Kf8 {[%emt 0:00:06]} 37. Rb7 {[%emt 0:01:18]} Rxa4 {[%emt 0:00:06]} 38. Kg3 {[%emt 0:00:04]} Ra1 {[%emt 0:05:20]} 39. Kf3 {[%emt 0:00:44]} Rh1 {[%emt 0:01:38]} 40. Ke4 {[%emt 0:00:16]} Rxh4 {[%emt 0:01:50]} 41. Ke5 {[%emt 0:00:26]} Kg7 {[%emt 0:02:06]} 42. Ra7 {[%emt 0:01:10]} b3 {[%emt 0:01:42]} 43. Rxa5 {[%emt 0:00:47]} b2 {[%emt 0:00:05]} 44. Rb5 {[%emt 0:00:08]} Rh2 {[%emt 0:00:05]} 45. Kd6 {[%emt 0:00:54]} h5 {[%emt 0:03:14]} 46. Kd7 {[%emt 0:00:57]} h4 {[%emt 0:00:44]} 47. Rb7 {[%emt 0:00:14]} Rf2 {[%emt 0:01:24]} 48. Ke8 {[%emt 0:01:05]} Rxf4 {[%emt 0:00:07]} 49. Rxb2 {[%emt 0:00:25]} Rg4 {[%emt 0:01:03]} 50. Rb5 {[%emt 0:00:37]} h3 {[%emt 0:00:15]} 51. Rb7 {[%emt 0:01:08]} Rf4 {[%emt 0:00:20]} 52. Rb3 {[%emt 0:00:22]} Rh4 {[%emt 0:00:50]} 53. Rf3 {[%emt 0:00:02]} Rh8+ {[%emt 0:01:13]} 54. Ke7 {[%emt 0:00:56]} Rf8 {[%emt 0:00:30]} 55. Rxh3 {[%emt 0:00:30]} f6 {[%emt 0:16:40]} 56. Rf3 {[%emt 0:01:13]} f5 {[%emt 0:01:34]} 57. Kd6 {[%emt 0:07:03]} Kf7 {[%emt 0:01:45]} 58. Ke5 {[%emt 0:06:15]} Rd8 {[%emt 0:01:51]} 59. Re3 {[%emt 0:00:38]} Rd5+ {[%emt 0:01:45]} 60. Kf4 {[%emt 0:00:01]} Rd4+ {[%emt 0:04:22]} 61. Ke5 {[%emt 0:04:03]} Re4+ {[%emt 0:01:03]} 62. Rxe4 {[%emt 0:00:17]} fxe4 {[%emt 0:00:02]} 63. Kxe4 {[%emt 0:00:07]} Ke8 {[%emt 0:00:13]} 64. Ke5 {[%emt 0:00:24]} Ke7 {[%emt 0:00:04]} 65. Ke4 {[%emt 0:00:46]} Kd6 {[%emt 0:00:05]} 66. Kd4 {[%emt 0:00:06]} e5+ {[%emt 0:00:26]} 67. Ke4 {[%emt 0:00:08]} Ke6 {[%emt 0:00:04]} 68. Ke3 {[%emt 0:00:08]} Kf5 {[%emt 0:00:10]} 69. Kf3 {[%emt 0:00:23]} Kxg5 {[%emt 0:00:47]} 70. Ke4 {[%emt 0:00:10]} Kg4 {[%emt 0:00:22]} 71. Ke3 {[%emt 0:00:16]} Kg3 {[%emt 0:01:09]} 72. Ke4 {[%emt 0:00:06]} g5 {[%emt 0:00:05]} 73. Kxe5 {[%emt 0:00:35]} g4 {[%emt 0:00:08]} 74. Ke4 {[%emt 0:00:07]} Kh3 {[%emt 0:00:17]} 75. Ke3 {[%emt 0:00:13]} g3 {[%emt 0:00:17]} 76. Ke2 {[%emt 0:00:33]} 0-1

[Event "ONJK-B 2019"]
[Site "Borne"]
[Date "2019.08.07"]
[Round "5.14"]
[White "Olree, Alex"]
[Black "Li-Behn, Tobias"]
[Result "1-0"]
[ECO "E04"]
[WhiteElo "1411"]
[BlackElo "1237"]
[Annotator "NA"]
[PlyCount "93"]
[EventDate "2019.08.05"]
[EventType "swiss"]
[EventCountry "NED"]
[SourceTitle "playchess.com"]
[Source "ChessBase"]
[SourceQuality "1"]
[TimeControl "5400+30"]

1. d4 {[%emt 0:00:00]} d5 {[%emt 0:00:00]} 2. c4 {[%emt 0:00:00]} c6 {[%emt 0:00:00]} 3. Nf3 {[%emt 0:00:00]} Nf6 {[%emt 0:00:00]} 4. g3 {[%emt 0:00:00]} e6 {[%emt 0:00:20]} 5. Bg2 {[%emt 0:00:02]} dxc4 {[%emt 0:00:49]} 6. Ne5 {[%emt 0:00:09]} Bb4+ {[%emt 0:02:46]} 7. Nc3 {[%emt 0:00:22]} Nd5 {[%emt 0:01:13]} 8. Qc2 {[%emt 0:02:47]} Nb6 {[%emt 0:04:25]} 9. Be3 {[%emt 0:03:49]} N8d7 {[%emt 0:02:51]} 10. O-O {[%emt 0:00:57]} O-O {[%emt 0:02:18]} 11. Na4 {[%emt 0:01:21]} Nd5 {[%emt 0:02:36]} 12. Bd2 {[%emt 0:01:57]} Bxd2 {[%emt 0:02:09]} 13. Qxd2 {[%emt 0:00:03]} N7b6 {[%emt 0:00:24]} 14. Nxb6 {[%emt 0:02:47]} Nxb6 {[%emt 0:03:19]} 15. Qc3 {[%emt 0:01:43]} Na4 {[%emt 0:02:59]} 16. Qb4 {[%emt 0:02:24]} Nb6 {[%emt 0:04:31]} 17. Rfd1 {[%emt 0:01:32]} a5 {[%emt 0:01:15]} 18. Qc5 {[%emt 0:02:45]} Na4 {[%emt 0:01:48]} 19. Qa3 {[%emt 0:00:01]} Nb6 {[%emt 0:00:07]} 20. Rac1 {[%emt 0:00:26]} Qc7 {[%emt 0:01:13]} 21. Nxc4 {[%emt 0:01:21]} Nxc4 {[%emt 0:00:43]} 22. Rxc4 {[%emt 0:00:06]} Rd8 {[%emt 0:01:22]} 23. e4 {[%emt 0:01:59]} Qb6 {[%emt 0:02:38]} 24. Qe7 {[%emt 0:02:10]} Bd7 {[%emt 0:01:46]} 25. b3 {[%emt 0:03:54]} g6 {[%emt 0:02:02]} 26. Rd3 {[%emt 0:01:17]} Be8 {[%emt 0:00:58]} 27. h4 {[%emt 0:03:04]} Rd7 {[%emt 0:01:37]} 28. Qf6 {[%emt 0:00:02]} Qb5 {[%emt 0:02:06]} 29. Bf1 {[%emt 0:01:08]} h5 {[%emt 0:02:17]} 30. Be2 {[%emt 0:01:14]} a4 {[%emt 0:01:28]} 31. Rc5 {[%emt 0:09:06]} Qb4 {[%emt 0:03:15]} 32. Bd1 {[%emt 0:06:39]} Qe1+ {[%emt 0:03:06]} 33. Kh2 {[%emt 0:00:01]} Qxe4 {[%emt 0:00:47]} 34. Rd2 {[%emt 0:01:46]} axb3 {[%emt 0:08:06]} 35. g4 {[%emt 0:00:06]} Rd5 {[%emt 0:07:42]} 36. gxh5 {[%emt 0:01:34]} Rf5 {[%emt 0:01:40]} 37. Rxf5 {[%emt 0:02:58]} Qxf5 {[%emt 0:00:39]} 38. Qxf5 {[%emt 0:00:02]} exf5 {[%emt 0:01:11]} 39. Bxb3 {[%emt 0:00:03]} Kg7 {[%emt 0:01:31]} 40. Re2 {[%emt 0:00:54]} Kh6 {[%emt 0:01:20]} 41. hxg6 {[%emt 0:00:28]} fxg6 {[%emt 0:00:08]} 42. Re7 {[%emt 0:00:29]} Rb8 {[%emt 0:00:47]} 43. Kg3 {[%emt 0:00:48]} g5 {[%emt 0:01:49]} 44. Re6+ {[%emt 0:01:19]} Kh5 {[%emt 0:00:09]} 45. hxg5 {[%emt 0:00:52]} Kxg5 {[%emt 0:00:03]} 46. f4+ {[%emt 0:00:05]} Kh5 {[%emt 0:01:08]} 47. Bd1# {[%emt 0:00:47]} 1-0

[Event "ONJK-B 2019"]
[Site "Borne"]
[Date "2019.08.07"]
[Round "5.15"]
[White "Van Hille, Clara"]
[Black "Decruyenaere, Laura"]
[Result "1/2-1/2"]
[ECO "C47"]
[WhiteElo "1391"]
[BlackElo "1382"]
[Annotator "NA"]
[PlyCount "24"]
[EventDate "2019.08.05"]
[EventType "swiss"]
[EventCountry "NED"]
[SourceTitle "playchess.com"]
[Source "ChessBase"]
[SourceQuality "1"]
[TimeControl "5400+30"]

1. e4 {[%emt 0:00:00]} e5 {[%emt 0:00:00]} 2. Nf3 {[%emt 0:00:00]} Nc6 {[%emt 0:00:00]} 3. Nc3 {[%emt 0:00:00]} Nf6 {[%emt 0:00:00]} 4. d4 {[%emt 0:00:07]} exd4 {[%emt 0:00:00]} 5. Nxd4 {[%emt 0:00:15]} Bb4 {[%emt 0:00:06]} 6. Nxc6 {[%emt 0:00:23]} bxc6 {[%emt 0:00:23]} 7. Bd3 {[%emt 0:00:35]} d5 {[%emt 0:01:07]} 8. exd5 {[%emt 0:01:38]} cxd5 {[%emt 0:01:16]} 9. O-O {[%emt 0:01:19]} O-O {[%emt 0:01:30]} 10. Bg5 {[%emt 0:07:51]} c6 {[%emt 0:05:28]} 11. Qf3 {[%emt 0:03:16]} Be7 {[%emt 0:03:07]} 12. Bxf6 {[%emt 0:00:30]} Bxf6 {[%emt 0:00:28]} 1/2-1/2